[Event "Titled Tuesday Blitz March 07 Late 2023"]
[White "Hakobyan, Aram"]
[Black "Di Berardino, Diego Rafael"]
[WhiteFideId "13306677"]
[BlackFideId "2105446"]
[WhiteElo "2563"]
[BlackElo "2432"]
[Result "1-0"]
[Round "02"]
[TimeControl "180+2"]
[Date "2023.03.07"]
[WhiteClock "0:01:36"]
[BlackClock "0:00:22"]

1. e4 {[%clk 0:03:00]}  c5 {[%clk 0:02:51]} 2. Nf3 {[%clk 0:03:00]}  e6 {[%clk 0:02:50]} 3. g3 {[%clk 0:02:59]}  Nc6 {[%clk 0:02:46]} 4. Bg2 {[%clk 0:02:59]}  Nf6 {[%clk 0:02:42]} 5. d3 {[%clk 0:02:58]}  d6 {[%clk 0:02:41]} 6. O-O {[%clk 0:02:58]}  Be7 {[%clk 0:02:39]} 7. Re1 {[%clk 0:02:59]}  e5 {[%clk 0:02:39]} 8. c3 {[%clk 0:03:00]}  O-O {[%clk 0:02:39]} 9. Nbd2 {[%clk 0:03:00]}  Rb8 {[%clk 0:02:37]} 10. a4 {[%clk 0:03:00]}  a6 {[%clk 0:02:35]} 11. Nc4 {[%clk 0:02:57]}  b5 {[%clk 0:02:34]} 12. axb5 {[%clk 0:02:58]}  axb5 {[%clk 0:02:35]} 13. Ne3 {[%clk 0:02:59]}  h6 {[%clk 0:02:28]} 14. Nh4 {[%clk 0:02:58]}  g6 {[%clk 0:02:01]} 15. Nd5 {[%clk 0:02:57]}  Kg7 {[%clk 0:01:53]} 16. Nxe7 {[%clk 0:02:55]}  Qxe7 {[%clk 0:01:47]} 17. f4 {[%clk 0:02:54]}  b4 {[%clk 0:01:38]} 18. f5 {[%clk 0:02:49]}  g5 {[%clk 0:01:32]} 19. Nf3 {[%clk 0:02:49]}  bxc3 {[%clk 0:01:31]} 20. bxc3 {[%clk 0:02:49]}  Ne8 {[%clk 0:01:25]} 21. h4 {[%clk 0:02:47]}  f6 {[%clk 0:01:26]} 22. Nd2 {[%clk 0:02:42]}  Nc7 {[%clk 0:01:23]} 23. Nc4 {[%clk 0:02:40]}  Rd8 {[%clk 0:01:18]} 24. Ne3 {[%clk 0:02:35]}  Qf7 {[%clk 0:01:13]} 25. Qf3 {[%clk 0:02:28]}  Rb3 {[%clk 0:01:01]} 26. Bd2 {[%clk 0:02:27]}  Bd7 {[%clk 0:00:57]} 27. Ng4 {[%clk 0:02:16]}  Rb2 {[%clk 0:00:53]} 28. Re2 {[%clk 0:02:15]}  Rdb8 {[%clk 0:00:53]} 29. Rf1 {[%clk 0:02:05]}  Rb1 {[%clk 0:00:47]} 30. Be3 {[%clk 0:01:54]}  Rxf1+ {[%clk 0:00:47]} 31. Bxf1 {[%clk 0:01:55]}  Rb1 {[%clk 0:00:46]} 32. hxg5 {[%clk 0:01:52]}  hxg5 {[%clk 0:00:46]} 33. Rh2 {[%clk 0:01:52]}  Ne7 {[%clk 0:00:39]} 34. Qh1 {[%clk 0:01:37]}  Kf8 {[%clk 0:00:28]} 35. Rh8+ {[%clk 0:01:36]}  Ng8 {[%clk 0:00:22]} 36. Nh6 {[%clk 0:01:36]} 1-0


[Site "https://www.chess.com"]

[Event "Titled Tuesday Blitz March 07 Late 2023"]
[White "Saveliev, Alexei"]
[Black "Mamedyarov, Shakhriyar"]
[WhiteFideId "24128546"]
[BlackFideId "13401319"]
[WhiteElo "2271"]
[BlackElo "2704"]
[Result "1-0"]
[Round "02"]
[TimeControl "180+2"]
[Date "2023.03.07"]
[WhiteClock "0:02:19"]
[BlackClock "0:01:30"]

1. c4 {[%clk 0:03:00]}  e5 {[%clk 0:02:56]} 2. Nc3 {[%clk 0:03:01]}  Nf6 {[%clk 0:02:56]} 3. Nf3 {[%clk 0:03:01]}  Nc6 {[%clk 0:02:55]} 4. e3 {[%clk 0:03:02]}  Bb4 {[%clk 0:02:54]} 5. Qc2 {[%clk 0:03:02]}  O-O {[%clk 0:02:54]} 6. Nd5 {[%clk 0:03:03]}  d6 {[%clk 0:02:51]} 7. a3 {[%clk 0:03:03]}  Bc5 {[%clk 0:02:48]} 8. b4 {[%clk 0:03:03]}  Bb6 {[%clk 0:02:48]} 9. Bd3 {[%clk 0:03:01]}  g6 {[%clk 0:02:41]} 10. Nxf6+ {[%clk 0:02:56]}  Qxf6 {[%clk 0:02:42]} 11. Bb2 {[%clk 0:02:57]}  Qe7 {[%clk 0:02:33]} 12. h4 {[%clk 0:02:47]}  Bg4 {[%clk 0:02:32]} 13. h5 {[%clk 0:02:46]}  Bxh5 {[%clk 0:02:27]} 14. Rxh5 {[%clk 0:02:42]}  gxh5 {[%clk 0:02:27]} 15. Bxh7+ {[%clk 0:02:40]}  Kg7 {[%clk 0:02:28]} 16. O-O-O {[%clk 0:02:39]}  a5 {[%clk 0:02:23]} 17. b5 {[%clk 0:02:38]}  Nd8 {[%clk 0:02:22]} 18. Rh1 {[%clk 0:02:38]}  Ne6 {[%clk 0:01:56]} 19. Rxh5 {[%clk 0:02:34]}  Rh8 {[%clk 0:01:43]} 20. Nxe5 {[%clk 0:02:18]}  dxe5 {[%clk 0:01:38]} 21. Bxe5+ {[%clk 0:02:19]}  f6 {[%clk 0:01:38]} 22. Qg6+ {[%clk 0:02:18]}  Kf8 {[%clk 0:01:38]} 23. Bxf6 {[%clk 0:02:18]}  Qxa3+ {[%clk 0:01:30]} 24. Bb2 {[%clk 0:02:19]} 1-0


[Site "https://www.chess.com"]

[Event "Titled Tuesday Blitz March 07 Late 2023"]
[White "Bortnyk, Mykola"]
[Black "Guzman, Christopher"]
[WhiteFideId "14120836"]
[BlackFideId "6405096"]
[WhiteElo "2582"]
[BlackElo "2281"]
[Result "1-0"]
[Round "02"]
[TimeControl "180+2"]
[Date "2023.03.07"]
[WhiteClock "0:00:17"]
[BlackClock "0:00:20"]

1. e4 {[%clk 0:02:59]}  c6 {[%clk 0:02:59]} 2. d4 {[%clk 0:02:59]}  d5 {[%clk 0:03:00]} 3. Nc3 {[%clk 0:02:59]}  dxe4 {[%clk 0:03:00]} 4. Nxe4 {[%clk 0:03:00]}  Nf6 {[%clk 0:03:01]} 5. Nxf6+ {[%clk 0:03:00]}  exf6 {[%clk 0:03:02]} 6. Bc4 {[%clk 0:03:01]}  Bd6 {[%clk 0:03:03]} 7. Qe2+ {[%clk 0:03:01]}  Be7 {[%clk 0:03:01]} 8. Nf3 {[%clk 0:03:01]}  O-O {[%clk 0:03:01]} 9. O-O {[%clk 0:03:01]}  Bd6 {[%clk 0:02:58]} 10. Re1 {[%clk 0:03:00]}  Bg4 {[%clk 0:02:55]} 11. Qe4 {[%clk 0:02:59]}  Bh5 {[%clk 0:02:54]} 12. Nh4 {[%clk 0:02:59]}  Nd7 {[%clk 0:02:45]} 13. g4 {[%clk 0:02:59]}  Nb6 {[%clk 0:02:32]} 14. Bb3 {[%clk 0:02:59]}  Qd7 {[%clk 0:02:16]} 15. Be6 {[%clk 0:01:31]}  Qxe6 {[%clk 0:01:50]} 16. Qxe6 {[%clk 0:01:30]}  fxe6 {[%clk 0:01:49]} 17. gxh5 {[%clk 0:01:31]}  Rfe8 {[%clk 0:01:48]} 18. Nf3 {[%clk 0:01:26]}  Kf7 {[%clk 0:01:48]} 19. b3 {[%clk 0:01:25]}  Bb4 {[%clk 0:01:46]} 20. Bd2 {[%clk 0:01:22]}  Bxd2 {[%clk 0:01:45]} 21. Nxd2 {[%clk 0:01:23]}  Rad8 {[%clk 0:01:45]} 22. c3 {[%clk 0:01:24]}  Nd5 {[%clk 0:01:43]} 23. Ne4 {[%clk 0:01:18]}  h6 {[%clk 0:01:40]} 24. Rad1 {[%clk 0:00:55]}  Nf4 {[%clk 0:01:38]} 25. Ng3 {[%clk 0:00:55]}  b6 {[%clk 0:01:35]} 26. Re4 {[%clk 0:00:53]}  Nd5 {[%clk 0:01:34]} 27. Rd3 {[%clk 0:00:51]}  c5 {[%clk 0:01:30]} 28. dxc5 {[%clk 0:00:50]}  bxc5 {[%clk 0:01:30]} 29. Ra4 {[%clk 0:00:49]}  Ra8 {[%clk 0:01:07]} 30. Ne4 {[%clk 0:00:49]}  Ke7 {[%clk 0:01:04]} 31. Nxc5 {[%clk 0:00:48]}  Rec8 {[%clk 0:01:04]} 32. b4 {[%clk 0:00:43]}  Rc6 {[%clk 0:01:03]} 33. c4 {[%clk 0:00:37]}  Nb6 {[%clk 0:00:54]} 34. Ra6 {[%clk 0:00:37]}  Rc7 {[%clk 0:00:51]} 35. f4 {[%clk 0:00:36]}  Kf7 {[%clk 0:00:47]} 36. Rg3 {[%clk 0:00:35]}  Re8 {[%clk 0:00:46]} 37. Rc3 {[%clk 0:00:32]}  Rd8 {[%clk 0:00:46]} 38. a4 {[%clk 0:00:27]}  Rd4 {[%clk 0:00:44]} 39. Nxe6 {[%clk 0:00:24]}  Rdxc4 {[%clk 0:00:42]} 40. Rxc4 {[%clk 0:00:22]}  Rxc4 {[%clk 0:00:42]} 41. f5 {[%clk 0:00:22]}  Nc8 {[%clk 0:00:38]} 42. b5 {[%clk 0:00:20]}  Ke7 {[%clk 0:00:36]} 43. Kg2 {[%clk 0:00:17]}  Kd7 {[%clk 0:00:30]} 44. Kg3 {[%clk 0:00:15]}  Rc3+ {[%clk 0:00:24]} 45. Kf4 {[%clk 0:00:15]}  Rh3 {[%clk 0:00:22]} 46. Nxg7 {[%clk 0:00:15]}  Rxh2 {[%clk 0:00:21]} 47. Rxf6 {[%clk 0:00:16]}  Rh4+ {[%clk 0:00:21]} 48. Ke5 {[%clk 0:00:16]}  Rxa4 {[%clk 0:00:21]} 49. Rf7+ {[%clk 0:00:16]}  Kd8 {[%clk 0:00:20]} 50. Ne6+ {[%clk 0:00:17]}  Ke8 {[%clk 0:00:20]} 51. Rh7 {[%clk 0:00:18]}  Nb6 {[%clk 0:00:20]} 52. f6 {[%clk 0:00:17]}  Nd7+ {[%clk 0:00:20]} 53. Kf5 {[%clk 0:00:17]} 1-0


[Site "https://www.chess.com"]

[Event "Titled Tuesday Blitz March 07 Late 2023"]
[White "Vlassov, Nikolai"]
[Black "Durarbayli, Vasif"]
[WhiteFideId "4103360"]
[BlackFideId "13402935"]
[WhiteElo "2324"]
[BlackElo "2543"]
[Result "0-1"]
[Round "02"]
[TimeControl "180+2"]
[Date "2023.03.07"]
[WhiteClock "0:00:04"]
[BlackClock "0:00:06"]

1. e4 {[%clk 0:03:00]}  c5 {[%clk 0:02:59]} 2. c3 {[%clk 0:03:00]}  d5 {[%clk 0:02:59]} 3. exd5 {[%clk 0:03:00]}  Qxd5 {[%clk 0:03:00]} 4. d4 {[%clk 0:03:01]}  Nf6 {[%clk 0:03:01]} 5. Nf3 {[%clk 0:03:01]}  e6 {[%clk 0:03:01]} 6. a3 {[%clk 0:03:00]}  Be7 {[%clk 0:02:50]} 7. Be3 {[%clk 0:03:00]}  cxd4 {[%clk 0:02:49]} 8. cxd4 {[%clk 0:03:01]}  O-O {[%clk 0:02:49]} 9. Nc3 {[%clk 0:03:02]}  Qd6 {[%clk 0:02:45]} 10. Qc2 {[%clk 0:03:02]}  Nc6 {[%clk 0:02:44]} 11. Bd3 {[%clk 0:03:02]}  Rd8 {[%clk 0:02:32]} 12. O-O {[%clk 0:02:57]}  Bd7 {[%clk 0:02:32]} 13. Qd2 {[%clk 0:02:49]}  Be8 {[%clk 0:02:20]} 14. Rad1 {[%clk 0:02:45]}  Nd5 {[%clk 0:02:10]} 15. Bb1 {[%clk 0:02:44]}  Rac8 {[%clk 0:02:05]} 16. Qd3 {[%clk 0:02:42]}  g6 {[%clk 0:02:02]} 17. Ne4 {[%clk 0:02:36]}  Qb8 {[%clk 0:02:00]} 18. Bh6 {[%clk 0:02:32]}  b5 {[%clk 0:01:35]} 19. Rfe1 {[%clk 0:02:23]}  b4 {[%clk 0:01:35]} 20. Ba2 {[%clk 0:02:23]}  Na5 {[%clk 0:01:26]} 21. Ne5 {[%clk 0:02:09]}  b3 {[%clk 0:01:16]} 22. Bb1 {[%clk 0:02:08]}  f6 {[%clk 0:01:16]} 23. Qd2 {[%clk 0:01:50]}  Qb6 {[%clk 0:01:05]} 24. Nf3 {[%clk 0:01:38]}  Nc4 {[%clk 0:01:05]} 25. Qe2 {[%clk 0:01:37]}  Bf7 {[%clk 0:00:45]} 26. Bd3 {[%clk 0:01:36]}  Nd6 {[%clk 0:00:36]} 27. Nc5 {[%clk 0:01:33]}  Nf5 {[%clk 0:00:36]} 28. Bxf5 {[%clk 0:01:28]}  exf5 {[%clk 0:00:35]} 29. h4 {[%clk 0:01:18]}  Re8 {[%clk 0:00:35]} 30. Qd3 {[%clk 0:01:14]}  Rcd8 {[%clk 0:00:33]} 31. Nxb3 {[%clk 0:01:09]}  Rb8 {[%clk 0:00:23]} 32. Nfd2 {[%clk 0:01:03]}  f4 {[%clk 0:00:19]} 33. Nc5 {[%clk 0:00:50]}  Qxb2 {[%clk 0:00:17]} 34. Rb1 {[%clk 0:00:32]}  Qa2 {[%clk 0:00:10]} 35. Rxb8 {[%clk 0:00:31]}  Rxb8 {[%clk 0:00:10]} 36. Nc4 {[%clk 0:00:28]}  Rd8 {[%clk 0:00:07]} 37. Re2 {[%clk 0:00:23]}  Qa1+ {[%clk 0:00:06]} 38. Kh2 {[%clk 0:00:24]}  Bf8 {[%clk 0:00:05]} 39. Bxf8 {[%clk 0:00:23]}  Kxf8 {[%clk 0:00:06]} 40. h5 {[%clk 0:00:23]}  Qc3 {[%clk 0:00:05]} 41. Nd2 {[%clk 0:00:14]}  Qxd3 {[%clk 0:00:05]} 42. Nxd3 {[%clk 0:00:14]}  Nc3 {[%clk 0:00:05]} 43. Re1 {[%clk 0:00:14]}  Rxd4 {[%clk 0:00:06]} 44. Nxf4 {[%clk 0:00:09]}  Rxf4 {[%clk 0:00:05]} 45. Nf3 {[%clk 0:00:09]}  Ra4 {[%clk 0:00:05]} 46. hxg6 {[%clk 0:00:09]}  hxg6 {[%clk 0:00:05]} 47. Re3 {[%clk 0:00:09]}  Nd5 {[%clk 0:00:05]} 48. Rd3 {[%clk 0:00:10]}  g5 {[%clk 0:00:06]} 49. g3 {[%clk 0:00:10]}  Nb6 {[%clk 0:00:06]} 50. Rd6 {[%clk 0:00:09]}  Ke7 {[%clk 0:00:05]} 51. Rc6 {[%clk 0:00:09]}  Bd5 {[%clk 0:00:06]} 52. Rc7+ {[%clk 0:00:09]}  Kd6 {[%clk 0:00:06]} 53. Rc3 {[%clk 0:00:09]}  Bxf3 {[%clk 0:00:07]} 54. Rxf3 {[%clk 0:00:09]}  Nd5 {[%clk 0:00:08]} 55. Rd3 {[%clk 0:00:08]}  Ke5 {[%clk 0:00:08]} 56. Kh3 {[%clk 0:00:08]}  f5 {[%clk 0:00:08]} 57. Rb3 {[%clk 0:00:08]}  a6 {[%clk 0:00:07]} 58. Rd3 {[%clk 0:00:06]}  Ke4 {[%clk 0:00:08]} 59. Rb3 {[%clk 0:00:06]}  Kd4 {[%clk 0:00:06]} 60. f3 {[%clk 0:00:07]}  Kc4 {[%clk 0:00:06]} 61. Rb8 {[%clk 0:00:05]}  Rxa3 {[%clk 0:00:06]} 62. Rg8 {[%clk 0:00:06]}  Rxf3 {[%clk 0:00:05]} 63. Rxg5 {[%clk 0:00:06]}  f4 {[%clk 0:00:06]} 64. Rf5 {[%clk 0:00:04]}  Rxg3+ {[%clk 0:00:06]} 65. Kh4 {[%clk 0:00:04]}  Re3 {[%clk 0:00:06]} 0-1


[Site "https://www.chess.com"]

[Event "Titled Tuesday Blitz March 07 Late 2023"]
[White "Paravyan, David"]
[Black "Melikyan, Gnel"]
[WhiteFideId "4194985"]
[BlackFideId "54109990"]
[WhiteElo "2577"]
[BlackElo "2138"]
[Result "1-0"]
[Round "02"]
[TimeControl "180+2"]
[Date "2023.03.07"]
[WhiteClock "0:00:22"]
[BlackClock "0:00:06"]

1. e4 {[%clk 0:03:00]}  e5 {[%clk 0:02:57]} 2. Nf3 {[%clk 0:03:01]}  Nf6 {[%clk 0:02:56]} 3. d4 {[%clk 0:03:00]}  exd4 {[%clk 0:02:54]} 4. e5 {[%clk 0:03:00]}  Ne4 {[%clk 0:02:49]} 5. Qxd4 {[%clk 0:02:59]}  d5 {[%clk 0:02:49]} 6. exd6 {[%clk 0:03:00]}  Nxd6 {[%clk 0:02:49]} 7. Nc3 {[%clk 0:03:01]}  Nc6 {[%clk 0:02:48]} 8. Qf4 {[%clk 0:03:02]}  Be7 {[%clk 0:02:43]} 9. Be3 {[%clk 0:03:02]}  Be6 {[%clk 0:02:33]} 10. O-O-O {[%clk 0:03:01]}  Qd7 {[%clk 0:02:31]} 11. Bb5 {[%clk 0:03:00]}  O-O {[%clk 0:02:15]} 12. Rhe1 {[%clk 0:02:46]}  Qe8 {[%clk 0:02:04]} 13. Nd4 {[%clk 0:02:43]}  Nxb5 {[%clk 0:02:01]} 14. Ndxb5 {[%clk 0:02:34]}  Bd8 {[%clk 0:01:43]} 15. Bc5 {[%clk 0:02:30]}  Ne7 {[%clk 0:01:36]} 16. Nxc7 {[%clk 0:02:24]}  Qc6 {[%clk 0:01:31]} 17. Nxe6 {[%clk 0:01:48]}  fxe6 {[%clk 0:01:26]} 18. Qd6 {[%clk 0:01:48]}  Qxd6 {[%clk 0:01:13]} 19. Rxd6 {[%clk 0:01:44]}  Bb6 {[%clk 0:01:00]} 20. Bxb6 {[%clk 0:01:41]}  Nc8 {[%clk 0:00:55]} 21. Rdxe6 {[%clk 0:01:37]}  Nxb6 {[%clk 0:00:55]} 22. f3 {[%clk 0:01:32]}  Rac8 {[%clk 0:00:45]} 23. Re7 {[%clk 0:01:32]}  Rf7 {[%clk 0:00:44]} 24. Re8+ {[%clk 0:01:30]}  Rf8 {[%clk 0:00:43]} 25. Rxc8 {[%clk 0:01:31]}  Nxc8 {[%clk 0:00:43]} 26. Nd5 {[%clk 0:01:30]}  Kf7 {[%clk 0:00:41]} 27. b3 {[%clk 0:01:29]}  Rd8 {[%clk 0:00:40]} 28. Nf4 {[%clk 0:01:25]}  Ne7 {[%clk 0:00:37]} 29. Nd3 {[%clk 0:01:21]}  Nf5 {[%clk 0:00:34]} 30. Kd2 {[%clk 0:01:15]}  Nd4 {[%clk 0:00:28]} 31. Re4 {[%clk 0:01:14]}  Kf6 {[%clk 0:00:26]} 32. c3 {[%clk 0:00:57]}  Ne6 {[%clk 0:00:22]} 33. Ke3 {[%clk 0:00:49]}  Nc7 {[%clk 0:00:20]} 34. Rf4+ {[%clk 0:00:48]}  Ke7 {[%clk 0:00:18]} 35. Rd4 {[%clk 0:00:48]}  Rc8 {[%clk 0:00:14]} 36. Kd2 {[%clk 0:00:47]}  Ne6 {[%clk 0:00:14]} 37. Ra4 {[%clk 0:00:45]}  a6 {[%clk 0:00:14]} 38. Rb4 {[%clk 0:00:44]}  b5 {[%clk 0:00:13]} 39. a4 {[%clk 0:00:44]}  Rd8 {[%clk 0:00:12]} 40. Ke3 {[%clk 0:00:41]}  Nc7 {[%clk 0:00:10]} 41. Re4+ {[%clk 0:00:40]}  Kf6 {[%clk 0:00:10]} 42. axb5 {[%clk 0:00:39]}  axb5 {[%clk 0:00:07]} 43. Rd4 {[%clk 0:00:38]}  Re8+ {[%clk 0:00:07]} 44. Kd2 {[%clk 0:00:37]}  Ra8 {[%clk 0:00:08]} 45. Nb4 {[%clk 0:00:31]}  Ra1 {[%clk 0:00:07]} 46. Nd5+ {[%clk 0:00:29]}  Nxd5 {[%clk 0:00:07]} 47. Rxd5 {[%clk 0:00:30]}  Ra2+ {[%clk 0:00:06]} 48. Ke3 {[%clk 0:00:26]}  b4 {[%clk 0:00:06]} 49. cxb4 {[%clk 0:00:23]}  Rb2 {[%clk 0:00:06]} 50. Rd3 {[%clk 0:00:23]}  Ke5 {[%clk 0:00:06]} 51. f4+ {[%clk 0:00:22]}  Ke6 {[%clk 0:00:06]} 52. Kf3 {[%clk 0:00:22]} 1-0


[Site "https://www.chess.com"]

[Event "Titled Tuesday Blitz March 07 Late 2023"]
[White "Flores Quillas, Diego Saul Rodri"]
[Black "Bluebaum, Matthias"]
[WhiteFideId "3822508"]
[BlackFideId "24651516"]
[WhiteElo "2326"]
[BlackElo "2638"]
[Result "0-1"]
[Round "02"]
[TimeControl "180+2"]
[Date "2023.03.07"]
[WhiteClock "0:00:16"]
[BlackClock "0:00:08"]

1. e4 {[%clk 0:03:00]}  e6 {[%clk 0:02:59]} 2. d4 {[%clk 0:03:00]}  d5 {[%clk 0:03:00]} 3. Nc3 {[%clk 0:02:59]}  Nf6 {[%clk 0:02:59]} 4. Bg5 {[%clk 0:02:58]}  dxe4 {[%clk 0:02:59]} 5. Nxe4 {[%clk 0:02:58]}  Be7 {[%clk 0:03:00]} 6. Bxf6 {[%clk 0:02:52]}  gxf6 {[%clk 0:03:00]} 7. Nf3 {[%clk 0:02:52]}  f5 {[%clk 0:03:01]} 8. Nc3 {[%clk 0:02:49]}  a6 {[%clk 0:03:01]} 9. g3 {[%clk 0:02:48]}  b5 {[%clk 0:03:02]} 10. Bg2 {[%clk 0:02:47]}  Bb7 {[%clk 0:03:03]} 11. Qe2 {[%clk 0:02:47]}  c5 {[%clk 0:03:01]} 12. O-O-O {[%clk 0:02:43]}  b4 {[%clk 0:03:02]} 13. Na4 {[%clk 0:02:42]}  Qa5 {[%clk 0:03:02]} 14. b3 {[%clk 0:02:32]}  cxd4 {[%clk 0:02:40]} 15. Rxd4 {[%clk 0:02:06]}  Nc6 {[%clk 0:02:36]} 16. Rd2 {[%clk 0:02:06]}  O-O {[%clk 0:02:24]} 17. Rhd1 {[%clk 0:01:59]}  Rad8 {[%clk 0:02:20]} 18. Ne1 {[%clk 0:01:51]}  Rxd2 {[%clk 0:02:10]} 19. Rxd2 {[%clk 0:01:52]}  Rd8 {[%clk 0:02:07]} 20. Rxd8+ {[%clk 0:01:45]}  Qxd8 {[%clk 0:02:08]} 21. Qd2 {[%clk 0:01:41]}  Qc7 {[%clk 0:01:55]} 22. f4 {[%clk 0:01:36]}  Bf6 {[%clk 0:01:45]} 23. Nd3 {[%clk 0:01:31]}  Nd4 {[%clk 0:01:27]} 24. Nac5 {[%clk 0:01:13]}  Bxg2 {[%clk 0:00:45]} 25. Qxg2 {[%clk 0:01:14]}  Qa5 {[%clk 0:00:45]} 26. Qa8+ {[%clk 0:00:56]}  Kg7 {[%clk 0:00:45]} 27. Qxa6 {[%clk 0:00:56]}  Qd8 {[%clk 0:00:38]} 28. Qb7 {[%clk 0:00:56]}  h5 {[%clk 0:00:27]} 29. Kb1 {[%clk 0:00:47]}  Kg6 {[%clk 0:00:22]} 30. Qxb4 {[%clk 0:00:44]}  Ne2 {[%clk 0:00:20]} 31. Qe1 {[%clk 0:00:33]}  Nc3+ {[%clk 0:00:19]} 32. Ka1 {[%clk 0:00:32]}  Ne4+ {[%clk 0:00:18]} 33. Kb1 {[%clk 0:00:29]}  Nxc5 {[%clk 0:00:15]} 34. Ne5+ {[%clk 0:00:26]}  Kg7 {[%clk 0:00:15]} 35. Qe2 {[%clk 0:00:25]}  Ne4 {[%clk 0:00:11]} 36. Qd3 {[%clk 0:00:23]}  Qc7 {[%clk 0:00:10]} 37. c4 {[%clk 0:00:23]}  Bxe5 {[%clk 0:00:09]} 38. fxe5 {[%clk 0:00:24]}  Qxe5 {[%clk 0:00:10]} 39. b4 {[%clk 0:00:21]}  f4 {[%clk 0:00:11]} 40. gxf4 {[%clk 0:00:21]}  Qxf4 {[%clk 0:00:12]} 41. Kc2 {[%clk 0:00:20]}  Qf2+ {[%clk 0:00:12]} 42. Kb3 {[%clk 0:00:20]}  f5 {[%clk 0:00:12]} 43. c5 {[%clk 0:00:19]}  Qxc5 {[%clk 0:00:05]} 44. bxc5 {[%clk 0:00:20]}  Nxc5+ {[%clk 0:00:05]} 45. Kc4 {[%clk 0:00:17]}  Nxd3 {[%clk 0:00:06]} 46. Kxd3 {[%clk 0:00:17]}  Kf6 {[%clk 0:00:06]} 47. Kd4 {[%clk 0:00:17]}  Ke7 {[%clk 0:00:06]} 48. Ke5 {[%clk 0:00:15]}  Kd7 {[%clk 0:00:06]} 49. Kf4 {[%clk 0:00:15]}  Kc6 {[%clk 0:00:07]} 50. Kg5 {[%clk 0:00:16]}  e5 {[%clk 0:00:04]} 51. Kxf5 {[%clk 0:00:15]}  Kd5 {[%clk 0:00:05]} 52. a4 {[%clk 0:00:14]}  e4 {[%clk 0:00:06]} 53. a5 {[%clk 0:00:15]}  e3 {[%clk 0:00:06]} 54. a6 {[%clk 0:00:15]}  Kc6 {[%clk 0:00:07]} 55. a7 {[%clk 0:00:16]}  Kb7 {[%clk 0:00:07]} 56. Kg5 {[%clk 0:00:15]}  e2 {[%clk 0:00:07]} 57. Kxh5 {[%clk 0:00:16]}  e1=Q {[%clk 0:00:08]} 0-1


[Site "https://www.chess.com"]

[Event "Titled Tuesday Blitz March 07 Late 2023"]
[White "Gerzhoy, Leonid"]
[Black "Kamsky, Gata"]
[WhiteFideId "2806126"]
[BlackFideId "2000024"]
[WhiteElo "2596"]
[BlackElo "2666"]
[Result "0-1"]
[Round "02"]
[TimeControl "180+2"]
[Date "2023.03.07"]
[WhiteClock "0:00:19"]
[BlackClock "0:01:01"]

1. d4 {[%clk 0:02:59]}  Nf6 {[%clk 0:02:58]} 2. Nf3 {[%clk 0:02:59]}  g6 {[%clk 0:02:58]} 3. Bg5 {[%clk 0:02:58]}  Bg7 {[%clk 0:02:57]} 4. Nbd2 {[%clk 0:02:58]}  d5 {[%clk 0:02:54]} 5. e3 {[%clk 0:02:57]}  O-O {[%clk 0:02:53]} 6. Bd3 {[%clk 0:02:57]}  c5 {[%clk 0:02:52]} 7. c3 {[%clk 0:02:56]}  cxd4 {[%clk 0:02:49]} 8. exd4 {[%clk 0:02:56]}  Nc6 {[%clk 0:02:49]} 9. O-O {[%clk 0:02:55]}  Bg4 {[%clk 0:02:46]} 10. h3 {[%clk 0:02:54]}  Bxf3 {[%clk 0:02:46]} 11. Nxf3 {[%clk 0:02:54]}  e6 {[%clk 0:02:43]} 12. Ne5 {[%clk 0:02:53]}  Qc7 {[%clk 0:02:37]} 13. f4 {[%clk 0:02:52]}  Ne4 {[%clk 0:02:34]} 14. Bxe4 {[%clk 0:02:50]}  dxe4 {[%clk 0:02:34]} 15. Qe2 {[%clk 0:02:41]}  f6 {[%clk 0:02:29]} 16. Nxc6 {[%clk 0:02:40]}  Qxc6 {[%clk 0:02:29]} 17. Bh4 {[%clk 0:02:39]}  f5 {[%clk 0:02:30]} 18. Bf2 {[%clk 0:02:34]}  a6 {[%clk 0:02:22]} 19. Be3 {[%clk 0:02:33]}  Rac8 {[%clk 0:02:14]} 20. Rac1 {[%clk 0:02:32]}  Rfd8 {[%clk 0:02:09]} 21. Rfd1 {[%clk 0:02:25]}  h5 {[%clk 0:02:06]} 22. c4 {[%clk 0:02:22]}  Qa4 {[%clk 0:01:58]} 23. b3 {[%clk 0:02:21]}  Qa5 {[%clk 0:01:55]} 24. Rc2 {[%clk 0:02:14]}  Rd7 {[%clk 0:01:54]} 25. d5 {[%clk 0:01:55]}  exd5 {[%clk 0:01:46]} 26. cxd5 {[%clk 0:01:54]}  Rxc2 {[%clk 0:01:31]} 27. Qxc2 {[%clk 0:01:53]}  Rc7 {[%clk 0:01:32]} 28. Qe2 {[%clk 0:01:44]}  Qb5 {[%clk 0:01:26]} 29. Qxb5 {[%clk 0:01:39]}  axb5 {[%clk 0:01:27]} 30. d6 {[%clk 0:01:39]}  Rd7 {[%clk 0:01:27]} 31. Rd5 {[%clk 0:01:34]}  b4 {[%clk 0:01:27]} 32. Bd2 {[%clk 0:01:12]}  Bc3 {[%clk 0:01:23]} 33. Kf2 {[%clk 0:01:02]}  Kf7 {[%clk 0:01:21]} 34. Bxc3 {[%clk 0:00:53]}  bxc3 {[%clk 0:01:21]} 35. Ke3 {[%clk 0:00:53]}  b6 {[%clk 0:01:11]} 36. Rd4 {[%clk 0:00:42]}  b5 {[%clk 0:01:08]} 37. Rd5 {[%clk 0:00:39]}  b4 {[%clk 0:01:07]} 38. Rd4 {[%clk 0:00:39]}  Ke6 {[%clk 0:01:07]} 39. Rxb4 {[%clk 0:00:38]}  Rxd6 {[%clk 0:01:07]} 40. Rc4 {[%clk 0:00:38]}  Rd3+ {[%clk 0:01:07]} 41. Ke2 {[%clk 0:00:37]}  Rd2+ {[%clk 0:01:06]} 42. Ke3 {[%clk 0:00:37]}  Rxg2 {[%clk 0:01:06]} 43. Rxc3 {[%clk 0:00:37]}  Rxa2 {[%clk 0:01:05]} 44. Rc6+ {[%clk 0:00:35]}  Kf7 {[%clk 0:01:03]} 45. Rc7+ {[%clk 0:00:33]}  Kf6 {[%clk 0:01:02]} 46. Rc6+ {[%clk 0:00:33]}  Kg7 {[%clk 0:01:02]} 47. Rc7+ {[%clk 0:00:32]}  Kh6 {[%clk 0:01:02]} 48. Rc3 {[%clk 0:00:22]}  h4 {[%clk 0:01:02]} 49. Kd4 {[%clk 0:00:20]}  Rd2+ {[%clk 0:01:02]} 50. Ke5 {[%clk 0:00:19]}  Rd3 {[%clk 0:01:01]} 0-1


[Site "https://www.chess.com"]